bitfinex-derivatives/quotes_SOLF0:USTF0_20240815
["timestamp","ask_amount","ask_price","bid_price","bid_amount"]
[1723728169999,0.05157873,143.78,143.75,0.04838884]
[1723728171001,0.05157873,143.78,143.76,3.4777]
[1723728172295,3.4777,143.77,143.75,0.04838884]
[1723728172500,0.05157873,143.78,143.75,0.04838884]
[1723728173602,3.52897873,143.78,143.75,3.52628884]
[1723728175307,3.4776,143.77,143.75,3.52628884]
[1723728175504,3.4776,143.77,143.75,0.04838884]
[1723728175910,3.52897873,143.78,143.75,0.04838884]
[1723728176213,3.52897873,143.78,143.75,3.52618884]
[1723728179804,0.05157873,143.78,143.75,0.04838884]
[1723728180515,0.05157873,143.78,143.77,3.4776]
[1723728182412,0.05157873,143.78,143.77,21.11284122]
[1723728184314,3.52887873,143.78,143.77,17.63524122]
[1723728184520,0.05157873,143.78,143.75,0.04838884]
[1723728184916,3.4778,143.76,143.75,0.04838884]
[1723728185919,36.8978,143.76,143.75,0.04838884]
[1723728187315,3.4778,143.76,143.75,0.04838884]
[1723728189508,3.4786,143.73,143.71,3.4789]
[1723728189914,3.4784,143.74,143.71,3.4789]
[1723728190119,41.76,143.76,143.7,3.4791]
[1723728190316,41.76,143.76,143.66,1.2465]
[1723728190521,41.76,143.76,143.67,17.6469164]
[1723728190713,0.05258566,143.72,143.7,0.04678925]
[1723728191412,0.05258566,143.72,143.7,3.52598925]
[1723728191617,3.53148566,143.72,143.7,3.52598925]
[1723728191920,0.05258566,143.72,143.7,0.04678925]
[1723728192119,3.479,143.71,143.7,0.04678925]
[1723728192320,0.05258566,143.72,143.7,0.04678925]
[1723728193123,3.53148566,143.72,143.7,0.04678925]
[1723728193327,0.05258566,143.72,143.7,0.04678925]
[1723728193528,3.479,143.71,143.7,0.04678925]
[1723728193718,0.05258566,143.72,143.7,0.04678925]
[1723728193915,3.53148566,143.72,143.7,0.04678925]
[1723728195225,3.479,143.71,143.7,0.04678925]
[1723728200031,0.05258566,143.72,143.7,0.04678925]
[1723728200231,0.05258566,143.72,143.7,3.52588925]
[1723728200427,3.53148566,143.72,143.7,0.04678925]
[1723728201830,3.53148566,143.72,143.7,3.52598925]
[1723728202026,0.05258566,143.72,143.7,0.04678925]
[1723728202329,0.05258566,143.72,143.71,21.12570811]
[1723728202732,0.05258566,143.72,143.71,3.479]
[1723728202929,0.05258566,143.72,143.7,3.52588925]
[1723728203128,0.05258566,143.72,143.7,0.04678925]
[1723728203638,3.53148566,143.72,143.7,0.04678925]
[1723728204230,3.53148566,143.72,143.7,17.69352968]
[1723728204630,3.53148566,143.72,143.7,0.04678925]
[1723728205136,3.53148566,143.72,143.7,17.69352739]
[1723728205432,3.53148566,143.72,143.7,0.04678925]
[1723728205832,3.53148566,143.72,143.7,17.69351859]
[1723728206229,0.05258566,143.72,143.7,21.17261859]
[1723728206436,0.05258566,143.72,143.7,0.04678925]
[1723728206738,0.05258566,143.72,143.71,3.479]
[1723728206925,0.05258566,143.72,143.7,0.04678925]
[1723728207130,3.53138566,143.72,143.7,0.04678925]
[1723728207329,0.05258566,143.72,143.7,0.04678925]
[1723728207729,3.479,143.71,143.7,0.04678925]
[1723728208128,0.05258566,143.72,143.7,0.04678925]
[1723728208435,0.05258566,143.72,143.71,21.1248618]
[1723728211032,0.05258566,143.72,143.71,3.479]
[1723728211235,0.05258566,143.72,143.71,21.12364413]
[1723728211435,0.05258566,143.72,143.7,3.52578925]
[1723728211632,0.05258566,143.72,143.71,17.64447792]
[1723728212139,0.05258566,143.72,143.71,21.12347792]
[1723728212327,6.9512,143.86,143.71,17.64447792]
[1723728212532,3.4774,143.78,143.75,3.4779]
[1723728212729,33.41,143.82,143.7,42.84349951]
[1723728212941,33.41,143.8,143.71,17.63969165]
[1723728213139,3.4779,143.76,143.73,3.4785]
[1723728213439,33.41,143.8,143.74,17.63969165]
[1723728213638,0.05053503,143.76,143.75,17.63969165]
[1723728214136,3.4776,143.77,143.75,17.64020378]
[1723728214438,3.52788288,143.77,143.74,3.52833649]
[1723728214640,3.52788288,143.77,143.75,17.64020378]
[1723728214937,0.05028288,143.77,143.74,3.52833649]
[1723728215139,0.05028288,143.77,143.75,17.64020378]
[1723728215339,0.05028288,143.77,143.75,3.4779]
[1723728215738,0.05028288,143.77,143.75,3.478]
[1723728215937,0.05028288,143.77,143.76,17.63855259]
[1723728216436,0.05028288,143.77,143.76,21.11635259]
[1723728217035,0.05028288,143.77,143.76,17.63855259]
[1723728217343,0.05028288,143.77,143.74,0.05013649]
[1723728217635,3.478,143.76,143.74,0.05013649]
[1723728217833,0.05028288,143.77,143.74,0.05013649]
[1723728218235,0.05028288,143.77,143.75,17.6382708]
[1723728218536,0.05028288,143.77,143.74,0.05013649]
[1723728218749,3.52798288,143.77,143.74,0.05013649]
[1723728218935,0.05028288,143.77,143.74,0.05013649]
[1723728219244,3.4779,143.76,143.74,0.05013649]
[1723728219545,0.05028288,143.77,143.74,0.05013649]
[1723728219839,0.05028288,143.77,143.74,3.52823649]
[1723728220640,0.05028288,143.77,143.75,3.4778]
[1723728221037,0.05028288,143.77,143.76,3.4778]
[1723728221541,0.05028288,143.77,143.76,21.11619008]
[1723728222436,0.05028288,143.77,143.76,17.63839008]
[1723728223235,0.05028288,143.77,143.76,21.11619008]
[1723728225045,0.05028288,143.77,143.76,3.4778]
[1723728227441,0.05028288,143.77,143.76,36.8878]
[1723728229150,2.6424,143.83,143.8,3.4767]
[1723728229151,3.4762,143.83,143.8,3.4767]
[1723728230242,3.4762,143.83,143.76,33.41]
[1723728230243,3.4764,143.82,143.79,3.477]
[1723728230449,3.4764,143.82,143.76,33.41]
[1723728230644,3.4764,143.82,143.8,0.04915918]
[1723728233145,0.04428738,143.83,143.8,0.04915918]
[1723728234448,3.4765,143.82,143.8,0.04915918]
[1723728234648,0.04428738,143.83,143.8,0.04915918]
[1723728235356,3.4765,143.82,143.8,0.04915918]
[1723728235856,0.04428738,143.83,143.8,0.04915918]
[1723728236651,3.52058738,143.83,143.8,3.52585918]
[1723728236853,0.04428738,143.83,143.8,3.52585918]
[1723728237857,3.52048738,143.83,143.81,3.4766]
[1723728238257,0.04428738,143.83,143.81,3.4766]
[1723728238551,0.04428738,143.83,143.8,13.39915918]
[1723728238758,0.04428738,143.83,143.82,3.4763]
[1723728241851,2.536,143.91,143.87,3.475]
[1723728242162,3.4747,143.89,143.86,13.35]
[1723728242459,3.4747,143.89,143.86,16.8253]
[1723728242856,3.4746,143.9,143.87,3.4751]
[1723728243062,1.3241,143.95,143.89,13.35]
[1723728243264,233.1695,143.97,143.92,13.35]
[1723728243458,3.4734,143.95,143.92,13.35]
[1723728243857,0.04966373,143.93,143.91,33.36]
[1723728244157,0.04966373,143.93,143.92,3.4739]
[1723728244358,0.04966373,143.93,143.92,3.52716133]
[1723728245466,226.0,144.06,143.92,3.52716133]
[1723728245467,3.46945158,144.01,143.92,0.05326133]
[1723728245766,35.975,144.04,143.92,0.05326133]
[1723728245767,3.4724,143.99,143.95,36.833]
[1723728246063,35.975,144.04,143.95,36.833]
[1723728246064,2.615,144.04,143.95,33.36]
[1723728246260,2.615,144.04,143.99,3.4722]
[1723728246566,2.615,144.04,143.97,33.36]
[1723728246869,3.4714,144.03,143.99,3.472]
[1723728247168,2.615,144.04,143.97,33.36]
[1723728247358,0.04775751,144.01,143.97,33.36]
[1723728247571,0.04775751,144.01,144.0,0.04998913]
[1723728248371,0.04775751,144.01,143.99,33.36]
[1723728248568,6.9369,144.15,143.99,33.36]
[1723728248871,5.88,144.14,144.03,33.36]
[1723728249067,33.36,144.13,144.03,33.36]
[1723728249267,6.06233554,144.1,144.03,33.36]
[1723728249462,2.6305,144.1,144.03,33.36]
[1723728249767,6.14602191,144.1,144.03,33.36]
[1723728249970,6.1001,144.1,144.03,33.36]
[1723728250174,0.04809714,144.08,144.05,0.04481793]
[1723728250469,3.47437674,144.08,144.05,0.04481793]
[1723728250670,0.04809714,144.08,144.07,33.36]
[1723728251265,0.04809714,144.08,144.07,36.8303]
[1723728251468,0.04809714,144.08,144.05,33.40481793]
[1723728251671,0.04809714,144.08,144.05,3.51541793]
[1723728252163,0.04809714,144.08,144.05,0.04481793]
[1723728252373,0.04809714,144.08,144.07,3.4703]
[1723728252671,0.04809714,144.08,144.05,33.40481793]
[1723728252873,0.04809714,144.08,144.06,3.4703]
[1723728253170,0.04809714,144.08,144.06,33.36]
[1723728253469,0.04809714,144.08,144.07,3.4703]
[1723728255281,0.04809714,144.08,144.05,33.40481793]
[1723728255772,0.04809714,144.08,144.06,3.4704]
[1723728256169,0.04809714,144.08,144.05,0.04481793]
[1723728256771,3.51829714,144.08,144.05,0.04481793]
[1723728257573,0.04809714,144.08,144.05,0.04481793]
[1723728258166,0.04809714,144.08,144.05,3.51561793]
[1723728258371,0.04809714,144.08,144.05,0.04481793]
[1723728258872,3.51829714,144.08,144.05,0.04481793]
[1723728259070,0.04809714,144.08,144.05,0.04481793]
[1723728259973,3.4706,144.06,144.05,0.04481793]
[1723728260173,2.61559714,144.08,144.05,0.04481793]
[1723728260577,3.4705,144.07,144.05,0.04481793]
[1723728260979,3.4706,144.06,144.05,0.04481793]
[1723728261579,3.4703,144.07,144.05,0.04481793]
[1723728261977,2.61559714,144.08,144.05,0.04481793]
[1723728262980,0.04809714,144.08,144.05,0.04481793]
[1723728264077,0.04809714,144.08,144.06,3.4705]
[1723728264270,0.04809714,144.08,144.05,33.40481793]
[1723728265070,3.4705,144.07,144.05,0.04481793]
[1723728265276,0.04809714,144.08,144.05,0.04481793]
[1723728265879,3.51829714,144.08,144.05,3.51561793]
[1723728266482,3.51829714,144.08,144.05,0.04481793]
[1723728266785,3.4703,144.07,144.05,0.04481793]
[1723728266980,0.04809714,144.08,144.06,3.4703]
[1723728267178,0.04809714,144.08,144.05,33.40481793]
[1723728267675,0.04809714,144.08,144.06,3.4706]
[1723728268081,0.04809714,144.08,144.05,33.40481793]
[1723728268286,0.04809714,144.08,144.07,3.4703]
[1723728268780,0.04809714,144.08,144.05,33.40481793]
[1723728268781,0.04809714,144.08,144.06,3.4704]
[1723728268968,0.04809714,144.08,144.05,33.40481793]
[1723728269975,0.04809714,144.08,144.05,0.04481793]
[1723728270984,3.51829714,144.08,144.05,0.04481793]
[1723728271182,0.04809714,144.08,144.05,0.04481793]
[1723728271581,0.04809714,144.08,144.05,3.51551793]
[1723728271782,0.04809714,144.08,144.05,0.04481793]
[1723728271976,3.51829714,144.08,144.05,0.04481793]
[1723728272691,0.04809714,144.08,144.05,0.04481793]
[1723728273083,0.04809714,144.08,144.05,3.51551793]
[1723728273084,3.51819714,144.08,144.05,3.51551793]
[1723728274186,0.04809714,144.08,144.05,33.40481793]
[1723728274590,0.04809714,144.08,144.06,3.4704]
[1723728274991,0.04809714,144.08,144.06,3.4706]
[1723728275895,0.04809714,144.08,144.05,36.87551793]
[1723728276292,0.04809714,144.08,144.05,33.40481793]
[1723728276591,0.04809714,144.08,144.06,3.4705]
[1723728277581,3.51819714,144.08,144.05,36.87541793]
[1723728277796,0.04809714,144.08,144.05,0.04481793]
[1723728277995,3.4703,144.07,144.05,0.04481793]
[1723728278784,3.4704,144.07,144.05,0.04481793]
[1723728280501,0.04809714,144.08,144.06,3.4705]
[1723728280695,0.04809714,144.08,144.05,0.04481793]
[1723728281188,3.4704,144.07,144.05,0.04481793]
[1723728281493,0.04809714,144.08,144.05,0.04481793]
[1723728281692,0.04809714,144.08,144.05,3.51551793]
[1723728281693,3.51829714,144.08,144.05,3.51551793]
[1723728281888,0.04809714,144.08,144.05,0.04481793]
[1723728282189,3.4703,144.07,144.05,0.04481793]
[1723728282394,3.56017127,144.08,144.05,0.04481793]
[1723728282590,0.04809714,144.08,144.05,0.04481793]
[1723728283093,3.4779221,144.08,144.05,0.04481793]
[1723728283290,3.4706,144.06,144.05,0.04481793]
[1723728284400,3.4705,144.07,144.05,0.04481793]
[1723728284802,3.51829714,144.08,144.05,0.04481793]
[1723728285898,3.51829714,144.08,144.05,3.51541793]
[1723728286099,0.04809714,144.08,144.05,3.51541793]
[1723728286298,3.4705,144.07,144.05,3.51541793]
[1723728286496,0.04809714,144.08,144.05,0.04481793]
[1723728286698,3.4705,144.07,144.05,0.04481793]
[1723728287000,3.4705,144.07,144.05,3.51561793]
[1723728288099,5.86,144.18,144.06,33.36]
[1723728288402,8.4272,144.18,144.1,33.36]
[1723728288705,3.4687,144.14,144.11,3.4693]
[1723728289297,3.4689,144.13,144.11,3.51451944]
[1723728289502,3.4689,144.13,144.11,0.04521944]
[1723728290297,3.4689,144.13,144.11,3.51451944]
[1723728291208,0.0453574,144.14,144.11,0.04521944]
[1723728291501,3.4673,144.2,144.13,33.36]
[1723728291704,3.54301832,144.23,144.15,33.36]
[1723728291908,37.3243,144.25,144.11,33.36]
[1723728291909,33.36,144.21,144.11,33.36]
[1723728292298,33.36,144.21,144.12,5.86]
[1723728292495,33.36,144.21,144.11,33.36]
[1723728292496,33.36,144.21,144.11,39.22]
[1723728292705,3.4678,144.18,144.15,3.52037687]
[1723728292904,33.36,144.21,144.15,3.52037687]
[1723728293207,33.36,144.21,144.15,0.05207687]
[1723728293208,3.4679,144.18,144.15,0.05207687]
[1723728293405,33.36,144.21,144.15,0.05207687]
[1723728294911,3.468,144.17,144.15,0.05207687]
[1723728295211,33.36,144.21,144.15,0.05207687]
[1723728295407,3.4678,144.18,144.15,0.05207687]
[1723728295608,40.2914,144.27,144.17,33.36]
[1723728295907,2.6619,144.26,144.17,33.36]
[1723728296108,2.6619,144.26,144.19,3.4674]
[1723728296312,2.6619,144.26,144.21,0.04852025]
[1723728297304,3.4667,144.23,144.21,0.04852025]
[1723728297811,3.4667,144.23,144.21,3.51542025]
[1723728298000,3.4667,144.23,144.21,0.04852025]
[1723728298205,3.4667,144.22,144.21,0.04852025]
[1723728299906,2.6619,144.26,144.21,0.04852025]
[1723728300108,2.6619,144.26,144.21,3.51532025]
[1723728300309,2.6619,144.26,144.21,0.04852025]
[1723728301209,3.4666,144.23,144.21,0.04852025]
[1723728302012,3.4667,144.22,144.21,0.04852025]
[1723728302610,3.4665,144.23,144.21,0.04852025]
[1723728303219,3.4663,144.24,144.21,0.04852025]
[1723728303514,43.82779097,144.28,144.21,0.04852025]
[1723728303515,36.86579097,144.28,144.21,0.04852025]
[1723728303916,3.50579097,144.28,144.22,33.36]
[1723728304211,5.82,144.31,144.22,33.36]
[1723728304406,5.82,144.31,144.22,36.0084]
[1723728305018,9.27340583,144.31,144.22,36.0084]
[1723728305215,9.27340583,144.31,144.25,0.04700207]
[1723728306715,33.36,144.3,144.25,0.04700207]
[1723728306921,33.36,144.28,144.25,0.04700207]
[1723728307217,1.3384,144.27,144.25,0.04700207]
[1723728307415,3.4657,144.26,144.25,0.04700207]
[1723728307814,36.8257,144.26,144.25,0.04700207]
[1723728308017,41.8792,144.26,144.13,33.36]
[1723728308320,33.36,144.23,144.13,33.36]
[1723728308522,33.36,144.21,144.11,33.36]
[1723728308821,5.82,144.2,144.14,3.4685]
[1723728309015,3.468,144.17,144.11,33.36]
[1723728309312,0.2531,144.19,144.16,33.36]
[1723728309519,33.36,144.26,144.16,33.36]
[1723728309719,36.88773318,144.26,144.16,33.36]
[1723728309916,3.4668,144.22,144.19,3.4673]
[1723728310310,36.88773318,144.26,144.16,33.36]
[1723728310514,3.4666,144.23,144.2,3.467]
[1723728310719,5.82,144.27,144.2,3.51853708]
[1723728310918,3.4668,144.22,144.2,0.05153708]
[1723728311222,33.36,144.26,144.2,0.05153708]
[1723728312117,3.4669,144.22,144.2,0.05153708]
[1723728312315,5.82,144.27,144.2,0.05153708]
[1723728312516,3.43632958,144.27,144.2,33.41153708]
[1723728312715,3.9081,144.29,144.2,33.41153708]
[1723728312915,7.39540753,144.29,144.2,33.41153708]
[1723728313123,3.4656,144.27,144.24,3.4662]
[1723728313317,7.39540753,144.29,144.24,3.4662]
[1723728313619,3.4659,144.26,144.23,3.4663]
[1723728313917,7.39540753,144.29,144.2,33.36]
[1723728314118,7.39540753,144.29,144.24,0.04400532]
[1723728314311,3.4657,144.27,144.24,3.51020532]
[1723728314716,3.4657,144.27,144.24,0.04400532]
[1723728314921,7.39540753,144.29,144.24,0.04400532]
[1723728315118,1.2341,144.29,144.25,33.36]
[1723728315319,226.0,144.48,144.27,33.36]
[1723728315520,3.4633,144.37,144.31,33.36]
[1723728315817,37.4121,144.4,144.29,33.36]
[1723728316016,5.02264111,144.39,144.29,33.36]
[1723728316212,7.48712981,144.4,144.33,33.36]
[1723728316414,4.0521,144.4,144.35,33.36]
[1723728316727,5.82,144.44,144.35,33.36]
[1723728316920,8.5107,144.44,144.33,9.3039615]
[1723728317222,8.5107,144.44,144.34,33.36]
[1723728317422,8.5107,144.44,144.37,0.0451137]
[1723728317617,3.4622,144.41,144.37,3.5080137]
[1723728318013,41.56,144.47,144.37,0.0451137]
[1723728318214,1.3444,144.45,144.37,0.0451137]
[1723728318419,4.83452816,144.45,144.37,0.0451137]
[1723728318620,3.462,144.42,144.38,3.4627]
[1723728319021,4.83452816,144.45,144.4,0.04391125]
[1723728319218,3.4621,144.41,144.4,0.04391125]
[1723728320622,46.39452816,144.45,144.4,0.04391125]
[1723728321223,3.462,144.42,144.4,0.04391125]
[1723728321423,4.83452816,144.45,144.4,0.04391125]
[1723728321625,3.4616,144.44,144.41,3.4621]
[1723728321828,1.3444,144.45,144.4,0.04391125]
[1723728322025,4.84121352,144.45,144.4,0.04391125]
[1723728322221,1.3444,144.45,144.4,0.04391125]
[1723728322821,1.2825,144.48,144.41,41.56]
[1723728323127,3.43135217,144.5,144.41,41.56]
[1723728323328,3.4606,144.48,144.45,3.4612]
[1723728323527,5.82,144.51,144.46,41.56]
[1723728323723,3.41957605,144.54,144.47,5.82]
[1723728323927,44.1369,144.57,144.44,41.60719154]
[1723728324127,41.56,144.55,144.41,44.99550845]
[1723728324325,41.56,144.55,144.46,3.4607]
[1723728324530,41.56,144.55,144.49,0.04734877]
[1723728324931,3.4599,144.51,144.49,0.04734877]
[1723728325229,41.56,144.55,144.49,0.04734877]
[1723728325435,3.46,144.5,144.49,0.04734877]
[1723728326829,41.56,144.5,144.41,5.82]
[1723728327031,48.4777,144.55,144.38,5.82]
[1723728327032,41.56,144.48,144.38,5.82]
[1723728327234,3.4619,144.42,144.36,41.56]
[1723728327432,1.2681,144.47,144.36,41.56]
[1723728327634,1.2681,144.47,144.41,3.462]
[1723728327829,3.4615,144.44,144.41,3.462]
[1723728328040,1.2681,144.47,144.36,41.56]
[1723728328334,41.56,144.44,144.32,27.7]
[1723728328537,41.56,144.44,144.31,41.56]
[1723728328838,41.56,144.44,144.37,3.463]
[1723728329045,41.56,144.44,144.31,41.56]
[1723728329332,47.38,144.46,144.35,41.56]
[1723728329529,47.38,144.46,144.36,3.5337487]
[1723728329530,3.4618,144.43,144.36,3.5337487]
[1723728329927,0.049179,144.42,144.39,0.05053502]
[1723728330434,0.049179,144.42,144.4,3.4624]
[1723728330833,0.049179,144.42,144.39,0.05053502]
[1723728331036,0.049179,144.42,144.41,3.4621]
[1723728332735,0.049179,144.42,144.39,0.05053502]
[1723728333738,0.049179,144.42,144.41,3.4621]
[1723728334135,3.4624,144.4,144.39,0.05053502]
[1723728334538,45.10639047,144.4,144.28,41.56]
[1723728334842,45.10639047,144.4,144.32,3.4642]
[1723728334843,3.4637,144.35,144.32,3.4642]
[1723728335042,3.43455955,144.37,144.32,3.4642]
[1723728335350,3.4635,144.36,144.28,41.56]
[1723728335543,9.33496502,144.38,144.28,41.56]
[1723728335841,3.464,144.34,144.28,41.56]
[1723728336037,3.53496502,144.38,144.28,41.56]
[1723728336240,0.05113583,144.33,144.31,0.05150439]
[1723728336441,0.05113583,144.33,144.32,3.4642]
[1723728336843,1.2591,144.39,144.31,41.61150439]
[1723728337143,41.56,144.44,144.33,41.56]
[1723728337446,6.0626,144.41,144.37,3.4629]
[1723728337842,2.6002,144.41,144.33,41.56]
[1723728338043,0.05089015,144.4,144.38,0.05274769]
[1723728338746,3.4626,144.39,144.38,0.05274769]
[1723728339652,3.4632,144.37,144.3,41.56]
[1723728339950,3.4632,144.37,144.34,3.4637]
[1723728340143,3.4632,144.37,144.3,44.96297152]
[1723728340144,3.4631,144.37,144.3,44.96297152]
[1723728340549,1.28,144.4,144.3,44.96297152]
[1723728341039,0.04608847,144.36,144.34,0.04589463]
[1723728341444,3.50948847,144.36,144.34,0.04589463]
[1723728341746,0.04608847,144.36,144.34,0.04589463]
[1723728342045,3.50948847,144.36,144.34,0.04589463]
[1723728342245,0.04608847,144.36,144.34,0.04589463]
[1723728342746,0.04608847,144.36,144.35,3.4636]
[1723728343848,0.04608847,144.36,144.34,3.50969463]
[1723728344247,3.50958847,144.36,144.34,0.04589463]
[1723728344447,0.04608847,144.36,144.34,0.04589463]
[1723728344946,3.4636,144.35,144.34,0.04589463]
[1723728345546,3.4641,144.33,144.3,3.4647]
[1723728347153,0.05069775,144.33,144.3,0.04684043]
[1723728347754,0.05069775,144.33,144.32,45.0243]
[1723728347947,1.28,144.4,144.32,41.56]
[1723728348755,9.23310777,144.43,144.32,41.56]
[1723728349160,41.56,144.42,144.29,5.8]
[1723728349359,0.05028701,144.38,144.35,0.05020366]
[1723728349659,3.4632,144.37,144.35,0.05020366]
[1723728350660,3.4633,144.36,144.35,0.05020366]
[1723728351064,3.4632,144.37,144.35,0.05020366]
[1723728351464,0.05028701,144.38,144.35,0.05020366]
[1723728351666,3.51328701,144.38,144.35,3.51370366]
[1723728351861,0.05028701,144.38,144.35,0.05020366]
[1723728352267,3.51328701,144.38,144.35,3.51370366]
[1723728352468,0.05028701,144.38,144.35,0.05020366]
[1723728352670,0.05028701,144.38,144.37,3.4631]
[1723728357860,0.05028701,144.38,144.35,0.05020366]
[1723728358563,7.23486456,144.49,144.37,41.56]
[1723728358765,8.55246456,144.49,144.4,41.56]
[1723728358965,1.3176,144.49,144.42,41.56]
[1723728359565,1.3176,144.49,144.45,3.461]
[1723728359968,0.05142015,144.47,144.45,3.461]
[1723728360166,0.05142015,144.47,144.46,3.461]
[1723728360965,7.22920349,144.62,144.46,41.56]
[1723728361162,1.2683,144.59,144.5,41.56]
[1723728361462,5.78,144.58,144.48,41.56]
[1723728361666,5.78,144.58,144.53,41.56]
[1723728361869,7.22615119,144.68,144.55,41.56]
[1723728361870,3.39806791,144.63,144.55,41.56]
[1723728362065,5.78,144.62,144.57,41.56]
[1723728362267,3.39806791,144.63,144.57,41.56]
[1723728362468,9.17806791,144.63,144.57,45.05878473]
[1723728362769,0.04378219,144.6,144.58,0.05052117]
[1723728363165,0.04378219,144.6,144.59,3.4578]
[1723728364070,49.78,144.7,144.59,3.4578]
[1723728364271,5.78,144.67,144.6,49.78]
[1723728364576,27.68,144.66,144.58,0.05052117]
[1723728364763,3.4569,144.64,144.55,53.20358229]
[1723728365168,3.4569,144.64,144.58,3.4579]
[1723728365372,3.4569,144.64,144.55,53.20358229]
[1723728365568,3.4569,144.64,144.55,49.78]
[1723728365773,27.68,144.66,144.58,0.05059113]
[1723728366169,49.78,144.65,144.58,0.05059113]
[1723728366370,49.78,144.63,144.5,49.78]
[1723728366665,5.78,144.62,144.5,49.78]
[1723728367272,3.4577,144.6,144.55,3.4586]
[1723728367576,5.78,144.62,144.53,49.78]
[1723728367874,3.47672729,144.62,144.55,49.78]
[1723728368067,0.04818605,144.57,144.55,49.83131554]
[1723728368268,0.04818605,144.57,144.56,3.52652327]
[1723728368564,0.04818605,144.57,144.56,3.4586]
[1723728369069,3.41137008,144.64,144.55,49.78]
[1723728369264,7.2224019,144.75,144.55,49.78]
[1723728369265,5.78,144.63,144.55,49.78]
[1723728369466,3.4575,144.61,144.53,3.45978283]
[1723728369668,0.04818081,144.58,144.55,0.04995943]
[1723728370370,5.78,144.57,144.55,0.04995943]
[1723728370568,0.04818081,144.58,144.57,3.4583]
[1723728371071,3.41622855,144.64,144.56,49.78]
[1723728371072,3.4559,144.68,144.56,49.78]
[1723728371273,1.2543,144.67,144.61,49.78]
[1723728371773,3.41034864,144.66,144.61,49.78]
[1723728371976,7.0343,144.67,144.61,49.78]
[1723728372173,1.2543,144.67,144.64,3.4565]
[1723728372386,2.548,144.68,144.61,49.78]
[1723728372569,6.962,144.8,144.64,49.78]
[1723728372570,117.84163986,144.77,144.64,49.78]
[1723728372766,2.5869,144.74,144.64,49.78]
[1723728373774,3.4546,144.73,144.69,3.4554]
[1723728374271,3.4544,144.74,144.7,3.4551]
[1723728374571,3.4544,144.74,144.68,0.04748394]
[1723728374775,5.78,144.73,144.7,3.4551]
[1723728375273,3.8882,144.75,144.7,3.4552]
[1723728375468,5.78,144.72,144.68,0.04748394]
[1723728375869,55.56,144.72,144.63,3.4568]
[1723728376181,55.56,144.72,144.59,49.78]
[1723728376373,5.78,144.71,144.63,3.4567]
[1723728376771,5.78,144.71,144.57,49.78]
[1723728376772,49.78,144.69,144.57,49.78]
[1723728376976,1.3472,144.68,144.57,49.78]
[1723728377275,5.78,144.67,144.66,0.05294061]
[1723728377575,5.78,144.67,144.57,49.78]
[1723728377777,1.3472,144.68,144.57,49.78]
[1723728377972,3.4566,144.65,144.62,3.457]
[1723728378168,5.78,144.64,144.57,49.78]
[1723728378368,5.78,144.63,144.57,49.78]
[1723728378566,1.3472,144.68,144.59,49.78]
[1723728378766,5.78,144.67,144.59,49.78]
[1723728378974,0.04899449,144.62,144.61,3.4574]
[1723728379276,0.04899449,144.62,144.61,53.2374]
[1723728379478,5.78,144.66,144.64,3.4565]
[1723728379773,5.78,144.66,144.59,49.78]
[1723728379981,0.05329656,144.63,144.6,0.05228204]
[1723728380179,0.05329656,144.63,144.62,3.4569]
[1723728381277,0.05329656,144.63,144.62,3.4571]
[1723728383785,77.42,144.74,144.66,3.456]
[1723728383786,27.64,144.74,144.66,3.456]
[1723728384078,8.4161,144.73,144.64,49.78]
[1723728384283,3.4555,144.69,144.64,49.78]
[1723728384479,3.4555,144.69,144.66,3.456]
[1723728384986,8.4161,144.73,144.64,49.78]
[1723728384987,2.6361,144.73,144.64,49.78]
[1723728385186,0.04435442,144.69,144.67,49.78]
[1723728385579,0.04435442,144.69,144.68,3.4557]
[1723728386591,0.04435442,144.69,144.66,0.04806079]
[1723728387284,0.04435442,144.69,144.67,3.4557]
[1723728387486,0.04435442,144.69,144.66,0.04806079]
[1723728387786,0.04435442,144.69,144.68,3.4557]